[Event "Marshall CC FIDE Premier November 2024"]
[Site "New York"]
[Date "2024.11.03"]
[Round "4.9"]
[White "Ayyappan, Santhosh"]
[Black "Stancil, Kimani"]
[Result "1-0"]
[ECO "B83"]
[WhiteElo "1933"]
[BlackElo "1915"]
[Annotator "RC"]
[PlyCount "105"]
[EventDate "2024.11.01"]
[EventType "swiss"]
[EventCountry "USA"]
[SourceTitle "playchess.com"]
[Source "ChessBase"]
[SourceQuality "1"]
[TimeControl "5400+30"]

1. e4 {[%emt 0:30:40]} c5 {[%emt 0:05:04]} 2. Nf3 {[%emt 0:00:19]} Nc6 {[%emt 0:01:42]} 3. d4 {[%emt 0:00:24]} cxd4 {[%emt 0:00:09]} 4. Nxd4 {[%emt 0:00:07]} e6 {[%emt 0:02:30]} 5. Be3 {[%emt 0:02:51]} Nf6 {[%emt 0:02:29]} 6. Nc3 {[%emt 0:00:43]} Be7 {[%emt 0:04:38]} 7. Be2 {[%emt 0:03:16]} d6 {[%emt 0:01:36]} 8. O-O {[%emt 0:01:15]} Bd7 {[%emt 0:07:41]} 9. Ndb5 {[%emt 0:04:25]} Qb8 {[%emt 0:00:01]} 10. Bf4 {[%emt 0:01:22]} e5 {[%emt 0:00:13]} 11. Bg5 {[%emt 0:01:55]} a6 {[%emt 0:00:09]} 12. Bxf6 {[%emt 0:00:50]} gxf6 {[%emt 0:00:15]} 13. Na3 {[%emt 0:00:06]} b5 {[%emt 0:00:57]} 14. Nd5 {[%emt 0:00:11]} f5 {[%emt 0:03:46]} 15. exf5 {[%emt 0:01:11]} Bxf5 {[%emt 0:00:17]} 16. Bf3 {[%emt 0:02:12]} Nd4 {[%emt 0:06:43]} 17. Nxe7 {[%emt 0:00:31]} Kxe7 {[%emt 0:00:05]} 18. Bxa8 {[%emt 0:00:16]} Qxa8 {[%emt 0:00:04]} 19. c3 {[%emt 0:01:59]} Rg8 {[%emt 0:00:15]} 20. f3 {[%emt 0:03:04]} Bh3 {[%emt 0:20:55]} 21. cxd4 {[%emt 0:03:37]} Bxg2 {[%emt 0:00:13]} 22. Kf2 {[%emt 0:00:11]} Rg6 {[%emt 0:00:17]} 23. Rg1 {[%emt 0:00:48]} Bxf3 {[%emt 0:00:24]} 24. Qe1 {[%emt 0:03:33]} Bg2 {[%emt 0:14:31]} 25. Qe3 {[%emt 0:01:06]} Rf6+ {[%emt 0:00:11]} 26. Ke1 {[%emt 0:00:49]} Rf4 {[%emt 0:00:14]} 27. Kd2 {[%emt 0:05:36]} Rxd4+ {[%emt 0:06:28]} 28. Kc1 {[%emt 0:00:17]} Qc6+ {[%emt 0:09:51]} 29. Qc3 {[%emt 0:00:26]} Qe4 {[%emt 0:05:01]} 30. Re1 {[%emt 0:02:08]} Qh4 {[%emt 0:02:10]} 31. Qg3 {[%emt 0:01:14]} Qh6+ {[%emt 0:01:39]} 32. Qe3 {[%emt 0:00:23]} Qh4 {[%emt 0:00:29]} 33. Nc2 {[%emt 0:00:52]} Rc4 {[%emt 0:03:29]} 34. b3 {[%emt 0:00:19]} Rc5 {[%emt 0:00:26]} 35. Kb2 {[%emt 0:00:40]} b4 {[%emt 0:01:06]} 36. Qg3 {[%emt 0:00:26]} Qxg3 {[%emt 0:00:46]} 37. hxg3 {[%emt 0:00:06]} Rc3 {[%emt 0:01:07]} 38. Re3 {[%emt 0:00:07]} Rc8 {[%emt 0:00:14]} 39. Nxb4 {[%emt 0:00:06]} a5 {[%emt 0:00:04]} 40. Nd3 {[%emt 0:00:06]} f5 {[%emt 0:00:18]} 41. Nxe5 {[%emt 0:00:07]} dxe5 {[%emt 0:00:32]} 42. Rxe5+ {[%emt 0:00:07]} Kf6 {[%emt 0:00:03]} 43. Rxa5 {[%emt 0:00:08]} Rg8 {[%emt 0:00:23]} 44. Ra6+ {[%emt 0:00:14]} Kg5 {[%emt 0:01:32]} 45. Rg1 {[%emt 0:00:10]} Be4 {[%emt 0:02:03]} 46. Rb6 {[%emt 0:00:24]} Kg4 {[%emt 0:00:00]} 47. Rh6 {[%emt 0:00:08]} Kf3 {[%emt 0:00:00]} 48. Rxh7 {[%emt 0:00:32]} Kf2 {[%emt 0:00:00]} 49. Rd1 {[%emt 0:00:27]} Rxg3 {[%emt 0:00:00]} 50. Rf7 {[%emt 0:00:40]} Ke3 {[%emt 0:00:13]} 51. a4 {[%emt 0:00:32]} Rg2+ {[%emt 0:01:06]} 52. Ka3 {[%emt 0:00:11]} Re2 {[%emt 0:01:06]} 53. Rf1 {[%emt 0:00:25]} 1-0

[Event "Marshall CC FIDE Premier November 2024"]
[Site "New York"]
[Date "2024.11.03"]
[Round "4.10"]
[White "Berg, George"]
[Black "Knowles, Chase"]
[Result "0-1"]
[ECO "B09"]
[WhiteElo "1952"]
[BlackElo "1966"]
[Annotator "RC"]
[PlyCount "104"]
[EventDate "2024.11.01"]
[EventType "swiss"]
[EventCountry "USA"]
[SourceTitle "playchess.com"]
[Source "ChessBase"]
[SourceQuality "1"]
[TimeControl "5400+30"]

1. e4 {[%emt 0:00:03]} g6 {[%emt 0:02:24]} 2. d4 {[%emt 0:00:06]} Bg7 {[%emt 0:00:07]} 3. Nc3 {[%emt 0:00:07]} d6 {[%emt 0:00:07]} 4. f4 {[%emt 0:00:07]} Nf6 {[%emt 0:00:34]} 5. Nf3 {[%emt 0:00:11]} O-O {[%emt 0:00:20]} 6. Bd3 {[%emt 0:00:04]} Nc6 {[%emt 0:01:30]} 7. e5 {[%emt 0:08:08]} dxe5 {[%emt 0:02:53]} 8. fxe5 {[%emt 0:00:07]} Ng4 {[%emt 0:02:07]} 9. Be4 {[%emt 0:03:35]} Bd7 {[%emt 0:13:55]} 10. h3 {[%emt 0:00:15]} Nh6 {[%emt 0:00:35]} 11. Bf4 {[%emt 0:08:25]} e6 {[%emt 0:05:26]} 12. g4 {[%emt 0:06:51]} Kh8 {[%emt 0:10:24]} 13. Qd2 {[%emt 0:00:07]} Ng8 {[%emt 0:00:11]} 14. O-O-O {[%emt 0:00:09]} f6 {[%emt 0:02:33]} 15. h4 {[%emt 0:04:56]} Be8 {[%emt 0:04:27]} 16. Qh2 {[%emt 0:09:34]} f5 {[%emt 0:02:28]} 17. gxf5 {[%emt 0:00:17]} gxf5 {[%emt 0:00:20]} 18. d5 {[%emt 0:14:11]} fxe4 {[%emt 0:06:03]} 19. dxc6 {[%emt 0:00:06]} Qc8 {[%emt 0:00:09]} 20. cxb7 {[%emt 0:02:27]} Qxb7 {[%emt 0:00:06]} 21. Ng5 {[%emt 0:00:08]} Rb8 {[%emt 0:02:13]} 22. b3 {[%emt 0:00:07]} Qc6 {[%emt 0:00:58]} 23. Ne2 {[%emt 0:07:27]} Bh5 {[%emt 0:03:03]} 24. Nd4 {[%emt 0:02:06]} Qc3 {[%emt 0:01:53]} 25. Kb1 {[%emt 0:06:23]} Bxd1 {[%emt 0:14:02]} 26. Rxd1 {[%emt 0:00:15]} Nh6 {[%emt 0:08:33]} 27. Ndxe6 {[%emt 0:04:28]} Rxf4 {[%emt 0:02:08]} 28. Nxg7 {[%emt 0:00:11]} Qxe5 {[%emt 0:01:10]} 29. N7e6 {[%emt 0:00:51]} Rf5 {[%emt 0:00:31]} 30. Qxe5+ {[%emt 0:03:42]} Rxe5 {[%emt 0:00:05]} 31. Rd7 {[%emt 0:00:09]} Rxe6 {[%emt 0:09:39]} 32. Nxe6 {[%emt 0:00:07]} Re8 {[%emt 0:02:21]} 33. Ng5 {[%emt 0:00:34]} Nf5 {[%emt 0:00:39]} 34. Rxh7+ {[%emt 0:01:26]} Kg8 {[%emt 0:00:04]} 35. Rxc7 {[%emt 0:00:26]} e3 {[%emt 0:01:02]} 36. Nf3 {[%emt 0:01:01]} e2 {[%emt 0:00:05]} 37. Rxa7 {[%emt 0:03:28]} Nxh4 {[%emt 0:00:34]} 38. Ne1 {[%emt 0:00:05]} Rd8 {[%emt 0:00:02]} 39. Ra4 {[%emt 0:02:41]} Rd1+ {[%emt 0:00:06]} 40. Kb2 {[%emt 0:00:05]} Rxe1 {[%emt 0:00:08]} 41. Re4 {[%emt 0:02:05]} Nf3 {[%emt 0:00:54]} 42. a4 {[%emt 0:00:24]} Ng1 {[%emt 0:00:09]} 43. a5 {[%emt 0:00:24]} Rd1 {[%emt 0:00:40]} 44. a6 {[%emt 0:01:31]} e1=Q {[%emt 0:00:14]} 45. Rxe1 {[%emt 0:00:07]} Rxe1 {[%emt 0:00:02]} 46. b4 {[%emt 0:00:14]} Re8 {[%emt 0:02:05]} 47. b5 {[%emt 0:00:57]} Nf3 {[%emt 0:01:18]} 48. Kc3 {[%emt 0:09:28]} Ne5 {[%emt 0:00:31]} 49. Kb4 {[%emt 0:00:44]} Kf7 {[%emt 0:01:17]} 50. b6 {[%emt 0:01:04]} Ke6 {[%emt 0:00:26]} 51. b7 {[%emt 0:02:19]} Kd6 {[%emt 0:00:30]} 52. Kb5 {[%emt 0:00:13]} Kc7 {[%emt 0:00:11]} 0-1

[Event "Marshall CC FIDE Premier November 2024"]
[Site "New York"]
[Date "2024.11.04"]
[Round "5.1"]
[White "Paragua, Megan Althea"]
[Black "Putnam, Liam"]
[Result "0-1"]
[ECO "B13"]
[WhiteElo "2190"]
[BlackElo "2388"]
[Annotator "TA"]
[PlyCount "116"]
[EventDate "2024.11.01"]
[EventType "swiss"]
[EventCountry "USA"]
[SourceTitle "playchess.com"]
[Source "ChessBase"]
[SourceQuality "1"]
[TimeControl "5400+30"]

{[%evp 13,116,14,28,0,0,0,0,0,29,14,9,0,41,0,33,24,22,38,24,31,25,26,14,0,18,-16,38,0,0,-36,-33,-35,-23,-42,-60,-60,-61,-68,-61,-68,-63,-73,-81,-76,-73,-74,-75,-79,-50,-92,-57,-52,-30,-26,0,-52,-51,-52,-48,-38,-38,-67,-45,-76,-72,-102,-83,-78,-82,-81,-68,-83,-78,-83,-55,-91,-36,-80,-35,-45,-50,-55,-63,-62,-37,-69,-53,-69,-69,-69,-52,-69,-69,-76,-78,-81,-78,-103,-57,-65,-55,-712,-712,-779,-717]} 1. e4 {[%emt 0:03:53]} c6 {[%emt 0:00:17]} 2. d4 {[%emt 0:00:07]} d5 {[%emt 0:00:07]} 3. exd5 {[%emt 0:00:13]} cxd5 {[%emt 0:00:05]} 4. c4 {[%emt 0:02:06]} Nf6 {[%emt 0:00:06]} 5. Nc3 {[%emt 0:00:05]} Nc6 {[%emt 0:00:18]} 6. Nf3 {[%emt 0:00:11]} Be6 {[%emt 0:00:22]} 7. c5 {[%emt 0:01:04]} g6 {[%emt 0:00:15]} 8. Be2 {[%emt 0:00:12]} Bg7 {[%emt 0:00:25]} 9. O-O {[%emt 0:00:13]} O-O {[%emt 0:00:25]} 10. h3 {[%emt 0:01:21] The position is equal.} Bf5 {[%emt 0:14:50]} 11. Be3 {[%emt 0:02:24]} Ne4 {[%emt 0:06:17]} 12. Rc1 {[%emt 0:04:35]} Rc8 {[%emt 0:06:38][%cal Oe4c5]} 13. Qa4 {[%emt 0:09:26]} Qd7 {[%emt 0:04:37] [#] Hoping for ...Nxc3.} 14. Qa3 {[%emt 0:03:10]} Rfd8 {[%emt 0:03:36]} 15. Rfd1 {[%emt 0:01:50]} Nxc3 {[%emt 0:16:40]} 16. Qxc3 {[%emt 0:03:14]} a5 {[%emt 0:01:48]} 17. Bb5 {[%emt 0:01:45]} Be4 {[%emt 0:04:34]} 18. Ng5 {[%emt 0:02:32]} Qc7 {[%emt 0:01:18]} 19. Qb3 {[%emt 0:16:50]} (19. Qd2 {is interesting.} e6 20. Bf4 e5 21. dxe5 Bxe5 22. Bxe5 Qxe5 23. b3) 19... Bf5 {[%emt 0:04:52]} ({Black should try} 19... e6 $1 $11) 20. Nf3 {[%emt 0:02:30]} h6 {[%emt 0:04:54]} 21. Bxc6 {[%emt 0:07:57]} bxc6 {[%emt 0:00:12]} 22. Qb6 {[%emt 0:01:13]} a4 {[%emt 0:04:59]} (22... Rd7 {with more complications.} 23. a4 Ra8 24. Ne5 Rb8) 23. Qxc7 {[%emt 0:03:11]} Rxc7 {[%emt 0:00:02]} 24. Bd2 {[%emt 0:00:31] And now Ba5 would win. White is weak on the light squares} Rb7 {[%emt 0:00:35]} 25. Bc3 {[%emt 0:00:13]} g5 {[%emt 0:01:14]} 26. Ne5 {[%emt 0:01:52][%cal Bf3e5,Be5d3,Bd3b4][%mdl 32]} Rc8 {[%emt 0:00:32]} 27. Nd3 {[%emt 0:05:00]} f6 {[%emt 0:01:29] Black is more active.} 28. f3 {[%emt 0:06:45]} Kf7 {[%emt 0:00:36]} 29. g4 {[%emt 0:02:29]} Bg6 {[%emt 0:02:04]} 30. Rd2 {[%emt 0:00:50]} Re8 {[%emt 0:01:22]} 31. Re1 {[%emt 0:00:23]} Bf8 {[%emt 0:05:42][%cal Oe7e5]} 32. Nb4 {[%emt 0:01:59]} Rc7 {[%emt 0:00:47][%cal Oe7e5]} 33. Kg2 {[%emt 0:01:50]} Ra8 {[%emt 0:03:03]} 34. a3 {[%emt 0:00:26]} ({Better is} 34. Rde2 $11) 34... Ke8 $15 {[%emt 0:01:05]} 35. Rde2 {[%emt 0:01:43]} Kd7 {[%emt 0:00:14]} 36. Kg3 {[%emt 0:01:38]} Re8 {[%emt 0:00:20]} 37. Kg2 {[%emt 0:00:55]} Rcc8 {[%emt 0:00:35]} 38. Na2 {[%emt 0:04:01]} e6 {[%emt 0:02:30]} 39. Bd2 {[%emt 0:00:55]} Bd3 {[%emt 0:01:32]} 40. Re3 {[%emt 0:00:26]} Bc4 {[%emt 0:00:02]} 41. Nb4 {[%emt 0:00:52]} Re7 {[%emt 0:01:00]} 42. Bc3 {[%emt 0:00:27]} Rce8 {[%emt 0:00:15]} 43. Nd3 {[%emt 0:00:47]} Kc7 {[%emt 0:01:21]} 44. Nb4 {[%emt 0:01:39]} Kb7 {[%emt 0:00:15]} (44... f5 $17 45. h4 gxh4) 45. Kh1 {[%emt 0:00:20]} Bb3 {[%emt 0:03:04]} 46. Kg2 {[%emt 0:00:12]} Kc7 {[%emt 0:00:25]} 47. Na6+ {[%emt 0:00:18]} Kd7 {[%emt 0:00:07]} 48. Nb4 {[%emt 0:00:01]} Bg7 {[%emt 0:00:16]} 49. Nd3 {[%emt 0:01:03]} Bc2 {[%emt 0:00:47]} 50. Kf2 {[%emt 0:00:52] [#]} h5 $1 {[%emt 0:00:45]} 51. R1e2 {[%emt 0:00:13]} (51. Rc1 Bb3) 51... Bb1 {[%emt 0:00:36][%cal Bc2b1,Bb1a2,Ba2c4,Bc4b5][%mdl 32]} 52. Re1 {[%emt 0:00:07]} Ba2 {[%emt 0:01:43]} 53. Nb4 {[%emt 0:00:13]} Bc4 {[%emt 0:00:06]} 54. Kg2 {[%emt 0:00:07]} Bb5 {[%emt 0:00:37]} 55. Nd3 {[%emt 0:01:00]} hxg4 {[%emt 0:02:46]} (55... e5 $17 {Strongly threatening ...exd4.} 56. dxe5 Bxd3 57. Rxd3 fxe5) 56. hxg4 {[%emt 0:00:09]} e5 {[%emt 0:00:18] ...exd4 is the strong threat.} 57. Kf2 $2 {[%emt 0:02:20][%mdl 8192]} (57. Nf2 $15) 57... exd4 $19 {[%emt 0:00:31]} 58. Rxe7+ {[%emt 0:03:06]} Rxe7 {[%emt 0:00:06] Weighted Error Value: White=0.28 (precise) /Black=0.12 (very precise) .  Loses game:     	White=1     	---        Mistake:       	White=1     	Black=3      Inaccurate:     	White=11    	Black=8      OK:         	White=13    	Black=21     Best:        	---       	Black=1} 0-1

[Event "Marshall CC FIDE Premier November 2024"]
[Site "New York"]
[Date "2024.11.04"]
[Round "5.2"]
[White "Muthukumar, Haari"]
[Black "Tadevosyan, Levon"]
[Result "1-0"]
[ECO "C47"]
[WhiteElo "2168"]
[BlackElo "1867"]
[Annotator "RC"]
[PlyCount "111"]
[EventDate "2024.11.01"]
[EventType "swiss"]
[EventCountry "USA"]
[SourceTitle "playchess.com"]
[Source "ChessBase"]
[SourceQuality "1"]
[TimeControl "5400+30"]

1. e4 {[%emt 0:00:08]} e5 {[%emt 0:01:37]} 2. Nf3 {[%emt 0:00:11]} Nc6 {[%emt 0:00:08]} 3. Nc3 {[%emt 0:00:16]} Nf6 {[%emt 0:00:05]} 4. a3 {[%emt 0:00:10]} d5 {[%emt 0:00:44]} 5. Bb5 {[%emt 0:00:46]} dxe4 {[%emt 0:04:19]} 6. Nxe5 {[%emt 0:00:24]} Bd7 {[%emt 0:01:21]} 7. Bxc6 {[%emt 0:00:54]} bxc6 {[%emt 0:05:05]} 8. Qe2 {[%emt 0:01:59]} Qe7 {[%emt 0:10:05]} 9. Nxd7 {[%emt 0:00:24]} Kxd7 {[%emt 0:00:34]} 10. O-O {[%emt 0:00:42]} Qe6 {[%emt 0:02:50]} 11. Re1 {[%emt 0:02:18]} Re8 {[%emt 0:00:52]} 12. d3 {[%emt 0:00:46]} Bc5 {[%emt 0:08:33]} 13. Nxe4 {[%emt 0:05:02]} Nxe4 {[%emt 0:01:38]} 14. dxe4 {[%emt 0:00:59]} Kc8 {[%emt 0:01:04]} 15. Bf4 {[%emt 0:04:17]} Rhg8 {[%emt 0:01:24]} 16. b4 {[%emt 0:00:41]} Bd4 {[%emt 0:05:28]} 17. Rad1 {[%emt 0:01:21]} Rd8 {[%emt 0:01:15]} 18. Qa6+ {[%emt 0:01:53]} Kb8 {[%emt 0:02:53]} 19. Bxc7+ {[%emt 0:00:43]} Kxc7 {[%emt 0:00:04]} 20. Rxd4 {[%emt 0:00:08]} Kb8 {[%emt 0:00:40]} 21. Qd3 {[%emt 0:00:56]} Rxd4 {[%emt 0:01:06]} 22. Qxd4 {[%emt 0:00:03]} h5 {[%emt 0:00:17]} 23. c4 {[%emt 0:00:31]} h4 {[%emt 0:00:13]} 24. e5 {[%emt 0:00:38]} Re8 {[%emt 0:01:11]} 25. Re3 {[%emt 0:00:46]} Qf5 {[%emt 0:00:29]} 26. h3 {[%emt 0:00:56]} g5 {[%emt 0:00:07]} 27. Qd6+ {[%emt 0:00:59]} Kb7 {[%emt 0:00:06]} 28. Rf3 {[%emt 0:00:42]} Qe6 {[%emt 0:01:38]} 29. Qxe6 {[%emt 0:00:58]} fxe6 {[%emt 0:00:10]} 30. Rf7+ {[%emt 0:00:12]} Kb6 {[%emt 0:00:10]} 31. c5+ {[%emt 0:02:02]} Ka6 {[%emt 0:00:24]} 32. Rc7 {[%emt 0:00:14]} Kb5 {[%emt 0:00:06]} 33. Rxa7 {[%emt 0:00:02]} Rd8 {[%emt 0:00:09]} 34. Re7 {[%emt 0:01:23]} Rd3 {[%emt 0:01:09]} 35. Rxe6 {[%emt 0:00:23]} Rxa3 {[%emt 0:00:07]} 36. Rg6 {[%emt 0:01:13]} Ra1+ {[%emt 0:00:14]} 37. Kh2 {[%emt 0:00:03]} Re1 {[%emt 0:00:03]} 38. Rxg5 {[%emt 0:01:11]} Kxb4 {[%emt 0:00:05]} 39. Rg4+ {[%emt 0:01:04]} Kxc5 {[%emt 0:00:05]} 40. Rxh4 {[%emt 0:00:02]} Rxe5 {[%emt 0:00:03]} 41. g4 {[%emt 0:00:52]} Kd6 {[%emt 0:01:05]} 42. Rh8 {[%emt 0:00:37]} c5 {[%emt 0:00:04]} 43. Rd8+ {[%emt 0:00:30]} Kc7 {[%emt 0:01:38]} 44. Rd3 {[%emt 0:00:17]} Kc6 {[%emt 0:00:04]} 45. f4 {[%emt 0:00:43]} Re4 {[%emt 0:00:25]} 46. Kg3 {[%emt 0:00:18]} Kb5 {[%emt 0:00:04]} 47. g5 {[%emt 0:00:18]} Kc4 {[%emt 0:00:01]} 48. Rd1 {[%emt 0:00:09]} Kb3 {[%emt 0:00:05]} 49. f5 {[%emt 0:01:07]} c4 {[%emt 0:00:27]} 50. f6 {[%emt 0:00:12]} Re5 {[%emt 0:00:09]} 51. Kf4 {[%emt 0:00:23]} Re2 {[%emt 0:00:05]} 52. g6 {[%emt 0:00:17]} c3 {[%emt 0:00:10]} 53. g7 {[%emt 0:00:42]} Rg2 {[%emt 0:00:17]} 54. f7 {[%emt 0:00:39]} c2 {[%emt 0:00:04]} 55. Rc1 {[%emt 0:00:14]} Kb2 {[%emt 0:00:13]} 56. Rxc2+ {[%emt 0:00:08]} 1-0

[Event "Marshall CC FIDE Premier November 2024"]
[Site "New York"]
[Date "2024.11.04"]
[Round "5.3"]
[White "Hebbar, Eshaan"]
[Black "Panuganti, Kireet"]
[Result "1-0"]
[ECO "D36"]
[WhiteElo "2130"]
[BlackElo "2020"]
[Annotator "RC"]
[PlyCount "123"]
[EventDate "2024.11.01"]
[EventType "swiss"]
[EventCountry "USA"]
[SourceTitle "playchess.com"]
[Source "ChessBase"]
[SourceQuality "1"]
[TimeControl "5400+30"]

1. d4 {[%emt 0:00:03]} Nf6 {[%emt 0:00:07]} 2. c4 {[%emt 0:00:26]} e6 {[%emt 0:00:05]} 3. Nf3 {[%emt 0:00:03]} d5 {[%emt 0:00:05]} 4. Nc3 {[%emt 0:00:04]} Be7 {[%emt 0:00:07]} 5. cxd5 {[%emt 0:00:07]} exd5 {[%emt 0:00:05]} 6. Bg5 {[%emt 0:00:28]} c6 {[%emt 0:00:05]} 7. Qc2 {[%emt 0:00:12]} g6 {[%emt 0:00:06]} 8. e3 {[%emt 0:00:45]} Bf5 {[%emt 0:00:06]} 9. Bd3 {[%emt 0:01:53]} Bxd3 {[%emt 0:00:05]} 10. Qxd3 {[%emt 0:00:04]} O-O {[%emt 0:00:31]} 11. O-O {[%emt 0:00:20]} Nbd7 {[%emt 0:00:10]} 12. Nd2 {[%emt 0:02:05]} Re8 {[%emt 0:00:42]} 13. f3 {[%emt 0:02:17]} c5 {[%emt 0:03:30]} 14. Bxf6 {[%emt 0:03:43]} Nxf6 {[%emt 0:00:36]} 15. Rfe1 {[%emt 0:02:39]} Rc8 {[%emt 0:17:33]} 16. dxc5 {[%emt 0:01:49]} Bxc5 {[%emt 0:00:49]} 17. Nb3 {[%emt 0:00:10]} Bb6 {[%emt 0:00:15]} 18. Kh1 {[%emt 0:02:46]} a6 {[%emt 0:07:45]} 19. Rad1 {[%emt 0:04:55]} Re5 {[%emt 0:04:50]} 20. Nd4 {[%emt 0:05:08]} Qd6 {[%emt 0:02:48]} 21. Re2 {[%emt 0:09:23]} Rce8 {[%emt 0:05:32]} 22. Nc2 {[%emt 0:07:49]} Bc7 {[%emt 0:21:53]} 23. f4 {[%emt 0:00:09]} R5e7 {[%emt 0:00:52]} 24. g3 {[%emt 0:05:55]} Rd8 {[%emt 0:10:55]} 25. Red2 {[%emt 0:00:46]} Qe6 {[%emt 0:03:16]} 26. Qe2 {[%emt 0:05:36]} Bb6 {[%emt 0:04:20]} 27. Qf3 {[%emt 0:06:53]} Red7 {[%emt 0:05:15]} 28. Nd4 {[%emt 0:01:02]} Qe8 {[%emt 0:02:50]} 29. g4 {[%emt 0:04:52]} Ne4 {[%emt 0:01:07]} 30. Rg2 {[%emt 0:01:11]} Re7 {[%emt 0:01:19]} 31. Nce2 {[%emt 0:02:22]} Nd6 {[%emt 0:02:09]} 32. Rd3 {[%emt 0:06:53]} Nc4 {[%emt 0:00:44]} 33. Rg3 {[%emt 0:00:15]} Nxb2 {[%emt 0:00:51]} 34. Rb3 {[%emt 0:00:02]} Nc4 {[%emt 0:00:29]} 35. Qf2 {[%emt 0:03:32]} Bc5 {[%emt 0:01:08]} 36. Rh3 {[%emt 0:01:01]} Qf8 {[%emt 0:03:34]} 37. f5 {[%emt 0:00:55]} Nd2 {[%emt 0:01:12]} 38. Qh4 {[%emt 0:03:19]} h6 {[%emt 0:00:06]} 39. f6 {[%emt 0:03:40]} Re4 {[%emt 0:01:29]} 40. Rxb7 {[%emt 0:01:21]} Nc4 {[%emt 0:00:18]} 41. Nc3 {[%emt 0:07:07]} Rxe3 {[%emt 0:00:46]} 42. Rxe3 {[%emt 0:00:17]} Nxe3 {[%emt 0:00:06]} 43. Ne6 {[%emt 0:01:01]} fxe6 {[%emt 0:00:57]} 44. Rg7+ {[%emt 0:00:09]} Qxg7 {[%emt 0:00:04]} 45. fxg7 {[%emt 0:00:05]} Rd7 {[%emt 0:00:36]} 46. Qxh6 {[%emt 0:03:19]} Rxg7 {[%emt 0:00:12]} 47. Ne2 {[%emt 0:02:16]} Nxg4 {[%emt 0:00:28]} 48. Qg5 {[%emt 0:00:37]} Nf2+ {[%emt 0:00:20]} 49. Kg2 {[%emt 0:00:01]} Rf7 {[%emt 0:01:06]} 50. Ng3 {[%emt 0:03:45]} Kh7 {[%emt 0:00:40]} 51. Qh4+ {[%emt 0:00:00]} Kg7 {[%emt 0:00:08]} 52. Qa4 {[%emt 0:00:00]} Nd3 {[%emt 0:00:27]} 53. Qxa6 {[%emt 0:00:21]} Rf2+ {[%emt 0:00:49]} 54. Kh3 {[%emt 0:00:57]} Nf4+ {[%emt 0:00:38]} 55. Kg4 {[%emt 0:00:08]} Ng2 {[%emt 0:00:27]} 56. Qxe6 {[%emt 0:00:46]} Ne3+ {[%emt 0:00:24]} 57. Kg5 {[%emt 0:00:25]} Rxh2 {[%emt 0:00:42]} 58. Qxg6+ {[%emt 0:00:45]} Kf8 {[%emt 0:00:15]} 59. Qf6+ {[%emt 0:00:02]} Kg8 {[%emt 0:00:38]} 60. Qe6+ {[%emt 0:00:12]} Kh7 {[%emt 0:00:36]} 61. Qf7+ {[%emt 0:00:34]} Kh8 {[%emt 0:00:03]} 62. Kg6 {[%emt 0:00:20]} 1-0

[Event "Marshall CC FIDE Premier November 2024"]
[Site "New York"]
[Date "2024.11.04"]
[Round "5.4"]
[White "Zhu, Linxi"]
[Black "Hoffman, Luc"]
[Result "1/2-1/2"]
[ECO "B29"]
[WhiteElo "2143"]
[BlackElo "2088"]
[Annotator "RC"]
[PlyCount "31"]
[EventDate "2024.11.01"]
[EventType "swiss"]
[EventCountry "USA"]
[SourceTitle "playchess.com"]
[Source "ChessBase"]
[SourceQuality "1"]
[TimeControl "5400+30"]

1. e4 {[%emt 0:00:03]} c5 {[%emt 0:00:03]} 2. Nf3 {[%emt 0:00:07]} Nf6 {[%emt 0:00:04]} 3. e5 {[%emt 0:00:03]} Nd5 {[%emt 0:00:04]} 4. Nc3 {[%emt 0:00:04]} e6 {[%emt 0:00:04]} 5. Ne4 {[%emt 0:00:03]} f5 {[%emt 0:00:53]} 6. Nc3 {[%emt 0:00:04]} Ne7 {[%emt 0:00:55]} 7. d4 {[%emt 0:18:00]} cxd4 {[%emt 0:01:36]} 8. Nb5 {[%emt 0:03:40]} Nec6 {[%emt 0:01:37]} 9. Bg5 {[%emt 0:02:22]} Qb6 {[%emt 0:02:22]} 10. Nfxd4 {[%emt 0:19:06]} a6 {[%emt 0:07:54]} 11. Nxc6 {[%emt 0:02:26]} Nxc6 {[%emt 0:00:08]} 12. Be3 {[%emt 0:02:07]} Qa5+ {[%emt 0:00:10]} 13. Bd2 {[%emt 0:00:07]} Qb6 {[%emt 0:00:04]} 14. Be3 {[%emt 0:00:12]} Qa5+ {[%emt 0:00:06]} 15. Bd2 {[%emt 0:00:19]} Qb6 {[%emt 0:00:07]} 16. Be3 {[%emt 0:01:20]} 1/2-1/2